[Event "25th Abu Dhabi Open 2018"]
[Site "Abu Dhabi"]
[Date "2018.08.09"]
[Round "3"]
[White "Atif, Mahgoub Elhassan"]
[Black "Ovezdurdiyeva, Jemal"]
[Result "0-1"]
[ECO "B20"]
[WhiteElo "1866"]
[BlackElo "2041"]
[Annotator "NA"]
[PlyCount "68"]
[EventDate "2018.08.05"]
[EventType "swiss"]
[EventCountry "UAE"]
[SourceTitle "playchess.com"]
[Source "ChessBase"]
[SourceQuality "1"]
[TimeControl "5400+30"]

1. e4 {[%emt 0:00:00]} c5 {[%emt 0:00:00]} 2. d4 {[%emt 0:00:20]} cxd4 {[%emt 0:01:05]} 3. Nf3 {[%emt 0:00:10]} d6 {[%emt 0:10:10]} 4. Bc4 {[%emt 0:00:37]} Nf6 {[%emt 0:02:22]} 5. Qe2 {[%emt 0:00:09]} Nc6 {[%emt 0:01:58]} 6. h3 {[%emt 0:00:23]} e6 {[%emt 0:01:19]} 7. c3 {[%emt 0:00:26]} dxc3 {[%emt 0:02:30]} 8. Nxc3 {[%emt 0:00:11]} a6 {[%emt 0:05:04]} 9. a4 {[%emt 0:00:34]} Be7 {[%emt 0:01:33]} 10. O-O {[%emt 0:00:10]} O-O {[%emt 0:00:22]} 11. Rd1 {[%emt 0:00:06]} Qa5 {[%emt 0:04:49]} 12. Bf4 {[%emt 0:03:10]} Rd8 {[%emt 0:06:50]} 13. g4 {[%emt 0:01:12]} d5 {[%emt 0:04:10]} 14. exd5 {[%emt 0:05:45]} exd5 {[%emt 0:01:47]} 15. Ba2 {[%emt 0:00:58]} Qb4 {[%emt 0:14:19]} 16. Bg3 {[%emt 0:06:09]} d4 {[%emt 0:11:41]} 17. Ne4 {[%emt 0:14:53]} Bd7 {[%emt 0:01:33]} 18. Neg5 {[%emt 0:06:58]} Be8 {[%emt 0:02:01]} 19. Nxf7 {[%emt 0:03:50]} Bxf7 {[%emt 0:03:12]} 20. Bxf7+ {[%emt 0:00:26]} Kxf7 {[%emt 0:02:20]} 21. Ng5+ {[%emt 0:00:25]} Ke8 {[%emt 0:00:11]} 22. Qe6 {[%emt 0:01:37]} Rd7 {[%emt 0:01:23]} 23. Qf7+ {[%emt 0:02:41]} Kd8 {[%emt 0:00:07]} 24. Qxg7 {[%emt 0:00:51]} Kc8 {[%emt 0:02:06]} 25. Rac1 {[%emt 0:10:25]} Bd8 {[%emt 0:06:19]} 26. Qh8 {[%emt 0:04:50]} Qb3 {[%emt 0:01:03]} 27. Be5 {[%emt 0:03:55]} Nd5 {[%emt 0:04:34]} 28. Rxd4 {[%emt 0:04:53]} Nde7 {[%emt 0:04:45]} 29. Rxd7 {[%emt 0:01:54]} Kxd7 {[%emt 0:00:11]} 30. Bg3 Qxg3+ {[%emt 0:01:53]} 31. Kh1 {[%emt 0:11:59]} Qxf2 {[%emt 0:00:37]} 32. Rd1+ {[%emt 0:00:20]} Kc7 {[%emt 0:00:15]} 33. Qe8 {[%emt 0:01:14]} Kb6 {[%emt 0:00:31]} 34. Qd7 {[%emt 0:01:29]} Nf5 {[%emt 0:01:34]} 0-1

[Event "25th Abu Dhabi Open 2018"]
[Site "Abu Dhabi"]
[Date "2018.08.09"]
[Round "3"]
[White "Sabitov, Ilyas"]
[Black "Ahmed, Fareed"]
[Result "1/2-1/2"]
[ECO "C03"]
[WhiteElo "1839"]
[BlackElo "2025"]
[Annotator "NA"]
[PlyCount "165"]
[EventDate "2018.08.05"]
[EventType "swiss"]
[EventCountry "UAE"]
[SourceTitle "playchess.com"]
[Source "ChessBase"]
[SourceQuality "1"]
[TimeControl "5400+30"]

1. e4 {[%emt 0:00:00]} e6 {[%emt 0:18:08]} 2. d4 {[%emt 0:00:00]} d5 {[%emt 0:00:25]} 3. Nd2 {[%emt 0:00:13]} dxe4 {[%emt 0:00:18]} 4. Nxe4 {[%emt 0:00:11]} Nf6 {[%emt 0:00:05]} 5. Bg5 {[%emt 0:00:23]} Be7 {[%emt 0:00:05]} 6. Bxf6 {[%emt 0:00:12]} gxf6 {[%emt 0:00:04]} 7. Nf3 {[%emt 0:00:54]} b6 {[%emt 0:00:14]} 8. Bd3 {[%emt 0:01:32]} Bb7 {[%emt 0:10:18]} 9. Qe2 {[%emt 0:02:22]} Nd7 {[%emt 0:00:47]} 10. O-O-O {[%emt 0:01:19]} c6 {[%emt 0:00:25]} 11. Kb1 {[%emt 0:01:32]} Qc7 {[%emt 0:09:26]} 12. Rhe1 {[%emt 0:03:41]} O-O-O {[%emt 0:01:59]} 13. Ba6 {[%emt 0:02:58]} Rhg8 {[%emt 0:12:59]} 14. Bxb7+ {[%emt 0:01:48]} Kxb7 {[%emt 0:00:14]} 15. c4 {[%emt 0:03:26]} Bb4 {[%emt 0:02:57]} 16. Rg1 {[%emt 0:01:20]} f5 {[%emt 0:01:04]} 17. Ng3 {[%emt 0:02:00]} Nf6 {[%emt 0:00:15]} 18. a3 {[%emt 0:01:44]} Bd6 {[%emt 0:01:50]} 19. Nf1 {[%emt 0:05:57]} Bf4 {[%emt 0:18:48]} 20. g3 {[%emt 0:03:20]} Bh6 {[%emt 0:03:49]} 21. Qe5 {[%emt 0:02:44]} Ne4 {[%emt 0:01:22]} 22. Qxc7+ {[%emt 0:00:18]} Kxc7 {[%emt 0:00:02]} 23. Rg2 {[%emt 0:00:28]} f6 {[%emt 0:01:43]} 24. d5 {[%emt 0:03:24]} cxd5 {[%emt 0:03:45]} 25. Nd4 {[%emt 0:01:16]} Rge8 {[%emt 0:02:17]} 26. cxd5 {[%emt 0:00:28]} Kb7 {[%emt 0:02:28]} 27. f3 {[%emt 0:03:07]} Rxd5 {[%emt 0:00:25]} 28. fxe4 fxe4 {[%emt 0:00:03]} 29. Re2 {[%emt 0:06:04]} f5 {[%emt 0:01:16]} 30. Ka2 {[%emt 0:01:54]} Red8 {[%emt 0:02:23]} 31. Nxe6 {[%emt 0:00:35]} Rxd1 {[%emt 0:00:03]} 32. Nxd8+ Rxd8 {[%emt 0:00:03]} 33. g4 {[%emt 0:00:23]} e3 {[%emt 0:03:59]} 34. gxf5 {[%emt 0:00:54]} Rd2 {[%emt 0:00:18]} 35. Re1 {[%emt 0:00:50]} Rf2 {[%emt 0:02:39]} 36. Nxe3 {[%emt 0:00:12]} Bg7 {[%emt 0:00:21]} 37. Nd1 {[%emt 0:00:28]} Rg2 {[%emt 0:00:21]} 38. Re7+ {[%emt 0:00:59]} Ka6 {[%emt 0:00:22]} 39. Kb1 {[%emt 0:01:17]} h5 {[%emt 0:00:11]} 40. b4 {[%emt 0:01:21]} Bd4 {[%emt 0:00:26]} 41. Rd7 {[%emt 0:00:43]} Be5 {[%emt 0:00:35]} 42. Re7 {[%emt 0:00:21]} Bxh2 {[%emt 0:00:58]} 43. Nc3 {[%emt 0:00:48]} Bb8 {[%emt 0:00:48]} 44. f6 {[%emt 0:00:38]} Rf2 {[%emt 0:00:27]} 45. f7 {[%emt 0:01:18]} b5 {[%emt 0:00:16]} 46. Re8 {[%emt 0:00:28]} Bd6 {[%emt 0:00:41]} 47. Re6 {[%emt 0:00:12]} Rxf7 {[%emt 0:00:19]} 48. Rxd6+ {[%emt 0:00:07]} Kb7 {[%emt 0:00:04]} 49. Rh6 {[%emt 0:00:24]} Rf5 {[%emt 0:00:12]} 50. Ne4 {[%emt 0:00:17]} Rf3 {[%emt 0:01:26]} 51. Kb2 {[%emt 0:00:35]} Rh3 {[%emt 0:00:20]} 52. Rh7+ {[%emt 0:01:19]} Kc6 {[%emt 0:00:43]} 53. Rh6+ {[%emt 0:00:45]} Kc7 {[%emt 0:00:26]} 54. Rh7+ {[%emt 0:01:19]} Kb6 {[%emt 0:00:05]} 55. Nf6 {[%emt 0:04:23]} Rh2+ {[%emt 0:00:35]} 56. Kb1 {[%emt 0:00:04]} Rh1+ {[%emt 0:00:06]} 57. Kc2 {[%emt 0:00:18]} Rh2+ {[%emt 0:00:06]} 58. Kd3 {[%emt 0:01:31]} Rh3+ {[%emt 0:00:03]} 59. Kd4 {[%emt 0:00:07]} Rxa3 {[%emt 0:00:19]} 60. Rxh5 {[%emt 0:00:13]} a5 {[%emt 0:00:48]} 61. Nd5+ {[%emt 0:00:48]} Kc6 {[%emt 0:00:44]} 62. Rh6+ {[%emt 0:00:21]} Kd7 {[%emt 0:00:10]} 63. Kc5 {[%emt 0:00:22]} axb4 {[%emt 0:00:18]} 64. Rd6+ {[%emt 0:00:58]} Ke8 {[%emt 0:00:12]} 65. Kxb4 {[%emt 0:00:27]} Ra1 {[%emt 0:00:09]} 66. Kxb5 {[%emt 0:00:06]} Kf7 {[%emt 0:00:03]} 67. Kc6 {[%emt 0:00:22]} Ra6+ {[%emt 0:00:19]} 68. Nb6 {[%emt 0:00:08]} Ra1 {[%emt 0:00:02]} 69. Kd7 {[%emt 0:00:11]} Ra7+ {[%emt 0:00:07]} 70. Kd8 {[%emt 0:00:14]} Ra1 {[%emt 0:00:11]} 71. Nc8 {[%emt 0:00:20]} Ra8 {[%emt 0:00:07]} 72. Rb6 {[%emt 0:00:16]} Ra1 {[%emt 0:00:12]} 73. Kd7 {[%emt 0:01:02]} Rd1+ {[%emt 0:00:12]} 74. Nd6+ {[%emt 0:00:18]} Kf6 {[%emt 0:00:04]} 75. Rb5 {[%emt 0:00:04]} Kg6 {[%emt 0:00:35]} 76. Re5 {[%emt 0:00:18]} Rd3 {[%emt 0:00:13]} 77. Ke6 {[%emt 0:00:43]} Ra3 {[%emt 0:00:23]} 78. Re1 {[%emt 0:00:12]} Kg5 {[%emt 0:00:10]} 79. Re4 {[%emt 0:00:50]} Ra8 {[%emt 0:00:17]} 80. Nf7+ {[%emt 0:00:40]} Kh5 {[%emt 0:00:46]} 81. Kf6 {[%emt 0:00:26]} Ra6+ {[%emt 0:00:41]} 82. Kf5 {[%emt 0:00:24]} Rf6+ {[%emt 0:00:26]} 83. Kxf6 {[%emt 0:00:19]} 1/2-1/2

[Event "25th Abu Dhabi Open 2018"]
[Site "Abu Dhabi"]
[Date "2018.08.09"]
[Round "3"]
[White "Mohamed, Marshool"]
[Black "Divinagracia, Alvin"]
[Result "1/2-1/2"]
[ECO "B10"]
[WhiteElo "1804"]
[BlackElo "2024"]
[Annotator "NA"]
[PlyCount "60"]
[EventDate "2018.08.05"]
[EventType "swiss"]
[EventCountry "UAE"]
[SourceTitle "playchess.com"]
[Source "ChessBase"]
[SourceQuality "1"]
[TimeControl "5400+30"]

1. e4 c6 2. c4 d5 3. cxd5 cxd5 4. exd5 Nf6 5. d4 Nxd5 6. Nc3 g6 7. Bc4 Nb6 8. Bb3 Bg7 9. Be3 O-O 10. h3 Nc6 11. Nf3 Na5 12. Bc2 Nac4 13. b3 Nd6 14. O-O Bd7 15. Ne5 Rc8 16. Nxd7 Qxd7 17. Ne2 Rfd8 18. Qd2 Nb5 19. Rfd1 Nd5 20. Bd3 Nbc3 21. Rdc1 e5 22. Bg5 Nxe2+ 23. Bxe2 Rxc1+ 24. Rxc1 Nf6 25. Qa5 exd4 26. Rc7 Qe8 27. Bc4 b6 28. Qxa7 Rd7 29. Rxd7 Nxd7 30. Bd2 Qd8 1/2-1/2